bitfinex-derivatives/quotes_SOLF0:USTF0_20241016
["timestamp","ask_amount","ask_price","bid_price","bid_amount"]
[1729118028997,100.80009765,154.79,154.7,8.97]
[1729118029301,8.97,154.78,154.73,8.97]
[1729118029604,4.58,154.8,154.73,8.97]
[1729118029807,8.97,154.78,154.73,8.97]
[1729118030201,3.2313,154.75,154.73,8.97]
[1729118032704,8.97,154.78,154.72,8.97]
[1729118032912,3.2316,154.73,154.71,13.55]
[1729118037911,3.2318,154.72,154.71,8.97]
[1729118040514,8.97,154.76,154.71,8.97]
[1729118040716,3.2316,154.73,154.72,8.97]
[1729118045122,3.2318,154.72,154.71,8.97]
[1729118045320,8.97,154.76,154.71,8.97]
[1729118046023,3.2317,154.73,154.71,8.97]
[1729118046326,3.2317,154.73,154.72,8.97]
[1729118046520,6.461,154.79,154.72,12.2016]
[1729118046521,3.2313,154.75,154.72,12.2016]
[1729118047123,3.2314,154.74,154.72,8.97]
[1729118048320,3.2314,154.74,154.71,3.2319]
[1729118048620,3.2314,154.74,154.72,8.97]
[1729118053124,19.43,154.83,154.7,4.58]
[1729118053125,4.58,154.86,154.73,8.97]
[1729118053316,8.97,154.83,154.78,8.97]
[1729118053725,8.97,154.83,154.78,3.26720875]
[1729118054020,8.97,154.83,154.77,8.97]
[1729118054226,8.97,154.83,154.78,3.19224164]
[1729118054420,8.97,154.83,154.77,8.97]
[1729118054621,3.2304,154.79,154.77,8.97]
[1729118055029,3.2304,154.79,154.77,12.26402888]
[1729118057032,3.2305,154.78,154.77,12.26402888]
[1729118062834,8.97,154.82,154.77,12.26402888]
[1729118063031,3.2305,154.79,154.77,12.26402888]
[1729118064129,20.7472,154.85,154.77,3.29402888]
[1729118064335,8.97,154.8,154.76,4.56]
[1729118064531,8.97,154.8,154.77,3.25881896]
[1729118067136,3.2305,154.78,154.77,3.25881896]
[1729118067639,3.2305,154.78,154.76,13.53]
[1729118067640,8.97,154.81,154.76,13.53]
[1729118067834,3.2306,154.78,154.76,13.53]
[1729118068034,3.2306,154.78,154.77,3.29284669]
[1729118070744,3.2306,154.78,154.76,13.53]
[1729118070945,100.76734872,154.87,154.77,8.97]
[1729118071146,8.97,154.85,154.8,8.97]
[1729118071845,3.23,154.81,154.8,12.21956392]
[1729118072740,3.23,154.81,154.8,3.24956392]
[1729118072944,100.76734872,154.87,154.8,3.24956392]
[1729118072945,3.2297,154.82,154.8,8.97]
[1729118073141,3.2297,154.82,154.81,3.2951095]
[1729118073343,3.2297,154.82,154.8,8.97]
[1729118073744,3.2297,154.82,154.8,12.16335874]
[1729118074243,3.2299,154.81,154.8,3.19335874]
[1729118074447,3.2299,154.81,154.78,8.97]
[1729118075049,3.2299,154.81,154.78,12.24895858]
[1729118075254,3.2299,154.81,154.78,15.47945858]
[1729118076453,3.2299,154.81,154.78,6.50945858]
[1729118076650,3.2299,154.81,154.78,15.47945858]
[1729118078043,3.2299,154.81,154.78,12.24895858]
[1729118081653,8.97,154.84,154.78,12.24895858]
[1729118081951,3.2301,154.8,154.78,12.24895858]
[1729118082647,3.2303,154.79,154.78,3.27895858]
[1729118082853,8.97,154.81,154.77,4.56]
[1729118083051,8.97,154.81,154.77,7.77714556]
[1729118084147,8.97,154.81,154.77,3.21714556]
[1729118084455,8.97,154.81,154.76,13.53]
[1729118085456,3.2305,154.79,154.76,13.53]
[1729118085948,6.4569,154.88,154.78,8.97]
[1729118086155,8.97,154.86,154.8,8.97]
[1729118086346,8.97,154.86,154.8,13.53]
[1729118086550,3.2296,154.83,154.8,13.53]
[1729118088057,3.2296,154.83,154.8,16.76]
[1729118092151,3.2293,154.84,154.82,8.97]
[1729118093257,3.2295,154.83,154.82,8.97]
[1729118093848,3.2293,154.84,154.82,8.97]
[1729118094057,4.56,154.89,154.82,8.97]
[1729118094353,8.97,154.87,154.82,8.97]
[1729118094755,3.2294,154.84,154.82,8.97]
[1729118099656,8.97,154.87,154.82,8.97]
[1729118099955,3.2295,154.83,154.82,8.97]
[1729118100357,8.97,154.87,154.82,8.97]
[1729118100556,3.2294,154.84,154.82,8.97]
[1729118103668,3.2292,154.85,154.82,12.1997]
[1729118105266,3.2292,154.85,154.83,8.97]
[1729118110176,3.2292,154.85,154.84,8.97]
[1729118111579,19.43,154.99,154.84,13.53]
[1729118111776,6.64150001,154.92,154.87,8.97]
[1729118111976,6.64150001,154.92,154.87,12.16168173]
[1729118112678,3.2282,154.9,154.87,12.16168173]
[1729118112979,3.2282,154.9,154.88,13.53]
[1729118113181,3.2282,154.9,154.88,16.77528545]
[1729118119378,8.97,154.93,154.88,12.21528545]
[1729118119578,8.97,154.89,154.85,1.3396]
[1729118119885,8.97,154.89,154.85,4.58953756]
[1729118120183,3.2288,154.86,154.85,13.55953756]
[1729118123679,8.97,154.9,154.85,13.55953756]
[1729118123876,3.2287,154.87,154.85,13.55953756]
[1729118124082,3.2287,154.87,154.85,18.11953756]
[1729118127095,3.2284,154.88,154.85,21.34843756]
[1729118127387,3.2284,154.88,154.87,8.97]
[1729118131892,2.7949,154.93,154.87,8.97]
[1729118131893,19.43,155.02,154.87,8.97]
[1729118132184,19.43,155.02,154.91,8.97]
[1729118132185,6.452,155.0,154.91,8.97]
[1729118132387,8.97,154.98,154.93,8.97]
[1729118132585,3.2272,154.94,154.93,12.23273987]
[1729118134490,4.56,154.99,154.93,8.97]
[1729118134685,13.53,154.99,154.94,12.25019631]
[1729118134890,13.53,154.99,154.94,8.97]
[1729118135395,3.227,154.95,154.94,12.17693009]
[1729118135591,8.97,154.98,154.93,8.97]
[1729118136294,3.2272,154.94,154.93,8.97]
[1729118136892,3.2275,154.93,154.91,13.5575356]
[1729118137295,8.97,154.95,154.91,3.1701356]
[1729118137495,8.97,154.94,154.88,14.9744]
[1729118137791,1.4246,154.98,154.89,3.21359269]
[1729118137792,8.97,154.93,154.89,3.21359269]
[1729118137998,3.228,154.9,154.89,3.21359269]
[1729118138295,8.97,154.92,154.87,13.53]
[1729118138696,3.2282,154.89,154.87,16.7229348]
[1729118139091,3.2282,154.89,154.87,3.1929348]
[1729118139293,3.2282,154.89,154.87,13.53]
[1729118139598,3.2282,154.89,154.87,16.79652853]
[1729118140491,3.2282,154.89,154.87,12.23652853]
[1729118140797,3.2282,154.89,154.87,16.79652853]
[1729118141897,3.2282,154.89,154.88,8.97]
[1729118142601,3.2282,154.89,154.88,13.53]
[1729118144294,3.2282,154.89,154.88,4.56]
[1729118144495,3.2282,154.89,154.87,20.02512853]
[1729118146097,3.2282,154.89,154.88,8.97]
[1729118146599,3.2282,154.89,154.88,13.53]
[1729118147400,8.97,154.94,154.88,8.97]
[1729118147606,3.2279,154.91,154.88,9.2223]
[1729118148098,3.2279,154.91,154.9,8.97]
[1729118150595,3.2276,154.92,154.9,8.97]
[1729118151409,3.2276,154.92,154.9,13.53]
[1729118155499,3.2276,154.92,154.9,16.758]
[1729118158510,3.2276,154.92,154.91,8.97]
[1729118160011,8.97,154.97,154.91,8.97]
[1729118160211,3.2274,154.93,154.91,12.1978]
[1729118162017,8.97,154.93,154.89,4.56]
[1729118162512,8.97,154.93,154.9,8.97]
[1729118163514,3.2278,154.91,154.9,8.97]
[1729118166317,3.2281,154.9,154.89,4.56]
[1729118168920,4.56,155.03,154.89,13.53]
[1729118169126,8.97,155.0,154.95,8.97]
[1729118169324,8.97,155.0,154.95,12.22823411]
[1729118170822,3.2267,154.97,154.95,12.22823411]
[1729118171127,8.97,154.97,154.92,13.53]
[1729118171828,3.2271,154.95,154.93,8.97]
[1729118172015,8.97,154.97,154.9,1.4435]
[1729118172222,8.97,154.97,154.92,12.1974]
[1729118172425,8.97,154.97,154.92,8.97]
[1729118172633,3.2269,154.96,154.91,13.53]
[1729118172928,8.97,154.97,154.91,13.53]
[1729118173223,3.2272,154.94,154.91,16.7578]
[1729118174524,8.97,154.95,154.91,8.97]
[1729118174725,3.2277,154.92,154.88,8.97]
[1729118175029,3.2277,154.92,154.9,8.97]
[1729118175418,3.2275,154.93,154.91,8.97]
[1729118176631,4.56,154.99,154.92,8.97]
[1729118176822,4.56,154.99,154.91,8.97]
[1729118176823,8.97,154.96,154.91,8.97]
[1729118177123,3.2275,154.93,154.91,8.97]
[1729118177823,3.2275,154.93,154.89,4.56]
[1729118178028,3.2275,154.93,154.9,8.97]
[1729118178426,3.2275,154.93,154.9,12.198]
[1729118181632,3.2278,154.92,154.89,8.97]
[1729118182719,3.2278,154.92,154.89,12.1982]
[1729118186030,3.2278,154.92,154.91,8.97]
[1729118186533,3.2275,154.93,154.91,8.97]
[1729118188829,8.97,154.96,154.88,4.56]
[1729118188830,3.2277,154.92,154.89,3.2282]
[1729118189030,3.2277,154.92,154.9,8.97]
[1729118190537,3.2278,154.91,154.89,3.2282]
[1729118190834,8.97,154.94,154.89,12.1982]
[1729118191435,8.97,154.94,154.89,8.97]
[1729118191629,11.7265,154.94,154.89,8.97]
[1729118192535,3.2279,154.91,154.89,8.97]
[1729118194637,3.2279,154.91,154.88,3.2283]
[1729118194833,3.2279,154.91,154.89,8.97]
[1729118195847,3.2277,154.92,154.89,12.1981]
[1729118196041,4.56,154.95,154.91,8.97]
[1729118196335,3.2275,154.93,154.91,8.97]
[1729118199536,3.2275,154.93,154.91,12.1978]
[1729118200640,4.56,154.95,154.91,8.97]
[1729118200833,3.2268,154.96,154.93,12.1974]
[1729118201537,8.97,154.99,154.93,12.1974]
[1729118201538,3.2267,154.97,154.94,3.2272]
[1729118201737,8.97,154.99,154.95,3.25329457]
[1729118201942,8.97,154.99,154.93,8.97]
[1729118202535,8.97,154.99,154.93,12.1973]
[1729118203140,3.2267,154.97,154.93,12.1973]
[1729118204532,3.2268,154.96,154.95,8.97]
[1729118204746,3.2268,154.96,154.95,12.18845669]
[1729118205141,3.2268,154.96,154.95,3.21845669]
[1729118205342,8.97,154.97,154.87,3.26652853]
[1729118205548,8.97,154.95,154.9,3.2278]
[1729118205845,8.97,154.95,154.9,6.52532236]
[1729118206048,3.2275,154.93,154.9,3.2278]
[1729118206243,8.97,154.95,154.89,8.97]
[1729118206443,8.97,154.95,154.89,12.1506988]
[1729118206743,4.56,154.98,154.92,8.97]
[1729118206939,8.97,154.97,154.92,12.1974]
[1729118207550,8.97,154.97,154.92,15.50062173]
[1729118208450,3.2271,154.95,154.92,15.50062173]
[1729118219655,3.227,154.95,154.92,15.50062173]
[1729118220564,8.97,154.96,154.92,12.27322173]
[1729118220863,3.227,154.95,154.92,12.27322173]
[1729118221252,8.97,154.96,154.92,12.27322173]
[1729118221454,8.97,154.96,154.92,3.30322173]
[1729118221655,8.97,154.96,154.9,18.2073]
[1729118222056,8.97,154.96,154.9,13.6473]
[1729118222258,8.97,154.96,154.9,16.82143192]
[1729118222458,3.2275,154.93,154.9,16.82143192]
[1729118223860,8.97,154.96,154.9,16.82143192]
[1729118224168,3.2276,154.92,154.9,16.82143192]
[1729118227569,8.97,154.97,154.9,13.59353192]
[1729118227771,4.56,154.98,154.93,8.97]
[1729118227970,13.53,154.98,154.93,8.97]
[1729118228269,13.53,154.98,154.92,3.2274]
[1729118228270,3.2271,154.95,154.92,3.2274]
[1729118228565,13.53,154.98,154.91,8.97]
[1729118228767,3.2271,154.95,154.91,12.1977]
[1729118230066,13.53,154.98,154.91,12.1977]
[1729118231367,3.2271,154.95,154.91,12.1977]
[1729118232963,3.2271,154.95,154.91,3.2277]
[1729118234570,3.2271,154.95,154.91,12.1977]
[1729118234967,3.2271,154.95,154.91,8.97]
[1729118235169,3.2271,154.95,154.92,3.2276]
[1729118236473,13.53,154.98,154.9,5.93623192]
[1729118236671,8.97,154.96,154.9,10.49623192]
[1729118236975,3.2273,154.94,154.9,13.72423192]
[1729118239574,8.97,154.96,154.9,13.72423192]
[1729118239771,3.2274,154.93,154.9,13.72423192]
[1729118241578,3.2274,154.93,154.9,13.72413192]
[1729118244376,3.2271,154.95,154.92,3.2275]
[1729118249493,4.56,154.99,154.91,8.97]
[1729118249790,8.97,154.98,154.91,8.97]
[1729118250696,3.2269,154.96,154.93,3.2273]
[1729118262004,13.97097386,155.04,154.95,8.97]
[1729118262005,3.2267,154.97,154.95,8.97]
[1729118262599,3.2263,154.99,154.94,13.53]
[1729118262800,8.97,155.0,154.94,13.53]
[1729118265408,3.2267,154.97,154.94,13.53]
[1729118266604,3.2267,154.97,154.94,16.7571]
[1729118268200,3.2267,154.97,154.94,13.53]
[1729118278818,0.0267,154.97,154.94,4.56]
[1729118279006,18.52929907,155.05,154.96,8.97]
[1729118279205,2.7463,155.04,154.96,12.12717463]
[1729118279411,3.2264,154.98,154.96,12.12717463]
[1729118279613,8.97,155.01,154.96,16.68717463]
[1729118280409,12.1965,154.97,154.96,3.15717463]
[1729118280610,8.97,154.97,154.93,4.56]
[1729118280814,8.97,154.97,154.91,10.4067]
[1729118281014,3.2269,154.96,154.92,4.56]
[1729118281215,8.97,154.97,154.92,4.56]
[1729118283522,3.2272,154.94,154.92,4.56]
[1729118283912,4.56,155.02,154.93,8.97]
[1729118284117,8.97,155.01,154.95,8.97]
[1729118284318,7.3063,155.04,154.97,8.97]
[1729118284618,3.2258,155.01,154.97,8.97]
[1729118284824,8.97,155.02,154.97,8.97]
[1729118285118,8.97,155.0,154.96,4.56]
[1729118285322,8.97,155.0,154.96,13.53]
[1729118285825,3.2262,154.99,154.96,13.53]
[1729118286122,8.97,155.0,154.96,13.53]
[1729118286324,3.2262,154.99,154.96,13.53]
[1729118287122,3.2264,154.98,154.96,13.53]
[1729118293421,8.97,154.98,154.91,3.27203965]
[1729118293624,8.97,154.96,154.88,4.56]
[1729118293828,8.97,154.96,154.9,8.97]
[1729118294524,3.2279,154.91,154.88,10.94603509]
[1729118294726,3.2279,154.91,154.9,8.97]
[1729118294927,1.4395,154.97,154.92,3.2275]
[1729118295118,1.4395,154.97,154.94,8.97]
[1729118295119,3.227,154.95,154.94,8.97]
[1729118296827,3.2271,154.95,154.88,7.71773509]
[1729118297032,1.4395,154.97,154.92,8.97]
[1729118297629,3.2271,154.95,154.92,8.97]
[1729118299833,3.2271,154.95,154.93,8.97]
[1729118303730,3.2269,154.96,154.93,8.97]
[1729118303932,1.4395,154.97,154.93,8.97]
[1729118305535,3.227,154.95,154.93,8.97]
[1729118312345,1.4395,154.97,154.93,8.97]
[1729118312544,1.4395,154.97,154.94,8.97]
[1729118313651,3.227,154.95,154.94,8.97]
[1729118317149,3.2268,154.96,154.94,8.97]
[1729118317347,1.425,154.98,154.94,8.97]
[1729118317751,3.2269,154.96,154.94,8.97]
[1729118318054,1.425,154.98,154.94,8.97]
[1729118318254,3.227,154.95,154.94,8.97]
[1729118321251,3.227,154.95,154.91,4.56]
[1729118321252,3.2275,154.93,154.91,4.56]
[1729118321451,10.395,154.98,154.93,8.97]
[1729118321749,3.227,154.95,154.94,8.97]
[1729118325050,3.227,154.95,154.92,3.2276]
[1729118325249,3.227,154.95,154.94,8.97]
[1729118326349,10.395,154.98,154.91,4.56]
[1729118326555,10.395,154.98,154.93,8.97]
[1729118327449,3.2271,154.95,154.93,8.97]
[1729118327853,3.2271,154.95,154.92,3.2275]
[1729118328052,3.2271,154.95,154.93,8.97]
[1729118332053,1.425,154.98,154.88,3.15773509]
[1729118332255,1.425,154.98,154.91,8.97]
[1729118332556,100.64587488,155.01,154.92,1.3809]
[1729118332557,4.56,155.0,154.92,1.3809]
[1729118332855,8.97,154.98,154.92,8.97]
[1729118333053,1.3628,154.97,154.92,8.97]
[1729118333257,3.2274,154.93,154.92,8.97]
[1729118334250,3.2274,154.93,154.9,3.2278]
[1729118334456,3.2274,154.93,154.91,8.97]
[1729118335658,10.3328,154.97,154.88,7.73339423]
[1729118335867,3.228,154.91,154.9,8.97]
[1729118336848,3.2277,154.92,154.9,8.97]
[1729118337958,3.2278,154.91,154.9,8.97]
[1729118339257,3.228,154.9,154.89,8.97]
[1729118339653,1.3243,154.95,154.89,8.97]
[1729118339855,3.2274,154.93,154.92,8.97]
[1729118340163,8.97,154.94,154.89,8.97]
[1729118340362,3.2279,154.91,154.89,8.97]
[1729118340561,3.2279,154.91,154.9,8.97]
[1729118342458,10.3757,154.96,154.88,3.17339423]
[1729118342760,3.2282,154.9,154.87,12.1986]
[1729118343357,1.4057,154.96,154.89,8.97]
[1729118343561,112.71682789,154.97,154.89,3.27760338]
[1729118343864,112.71682789,154.97,154.92,8.97]
[1729118344060,3.2268,154.96,154.93,3.28341417]
[1729118344258,112.71682789,154.97,154.92,8.97]
[1729118344658,112.71682789,154.97,154.92,12.22113205]
[1729118345064,13.53,154.97,154.92,12.22113205]
[1729118345466,3.2274,154.94,154.92,12.22113205]
[1729118346258,3.2274,154.94,154.92,3.25113205]
[1729118349670,101.8564764,154.98,154.92,3.25113205]
[1729118349874,3.2269,154.96,154.93,12.1972]
[1729118350073,115.3864764,154.98,154.93,8.97]
[1729118350670,115.3864764,154.98,154.94,3.19725037]
[1729118350876,3.2266,154.97,154.94,3.19725037]
[1729118351071,115.3864764,154.98,154.94,3.19725037]
[1729118351870,3.2269,154.96,154.94,3.19725037]
[1729118352875,115.3864764,154.98,154.94,3.19725037]
[1729118353072,3.227,154.95,154.94,3.19725037]
[1729118354479,8.97,154.96,154.9,1.3769]
[1729118354679,7.2326,154.98,154.91,8.97]
[1729118354874,7.2326,154.98,154.86,1.36]
[1729118354875,8.97,154.97,154.86,1.36]
[1729118355174,3.2273,154.94,154.92,8.97]
[1729118355367,3.2273,154.94,154.92,3.26567217]
[1729118355571,3.2273,154.94,154.91,8.97]
[1729118356081,3.2273,154.94,154.92,3.25200103]
[1729118357669,3.2274,154.93,154.92,3.25200103]
[1729118363275,3.2274,154.93,154.91,8.97]
[1729118363886,3.2274,154.93,154.91,12.263642]
[1729118370196,8.97,154.96,154.91,12.263642]
[1729118371493,3.2274,154.93,154.91,12.263642]
[1729118373791,3.2276,154.92,154.91,3.293642]
[1729118373990,3.2276,154.92,154.9,8.97]
[1729118374190,3.2276,154.92,154.9,12.14840972]
[1729118383605,4.56,154.95,154.9,12.14840972]
[1729118384404,3.2278,154.92,154.9,12.14840972]
[1729118386805,4.56,154.95,154.9,3.17840972]
[1729118387107,3.2278,154.91,154.89,8.97]
[1729118387409,3.2278,154.91,154.89,12.24696872]
[1729118387909,3.2278,154.91,154.89,15.47506872]
[1729118388099,3.2277,154.92,154.89,15.47506872]
[1729118389110,3.2277,154.92,154.9,3.228]
[1729118389612,4.56,154.95,154.89,12.24696872]
[1729118389907,3.2275,154.93,154.89,12.24696872]
[1729118390113,4.56,154.95,154.91,8.97]
[1729118390314,95.81834174,154.98,154.93,12.1972]
[1729118390315,3.2269,154.96,154.93,12.1972]
[1729118390811,3.2267,154.97,154.95,8.97]
[1729118391514,3.2267,154.97,154.96,3.25298741]
[1729118393117,3.2267,154.97,154.94,12.197]
[1729118393609,3.2267,154.97,154.94,15.34381352]
[1729118401313,93.14574174,154.98,154.94,12.11681352]
[1729118401520,3.2269,154.96,154.94,12.11681352]
[1729118404321,93.14574174,154.98,154.94,12.11681352]
[1729118404517,3.227,154.95,154.94,12.11681352]
[1729118418441,79.3734,155.08,154.94,12.11681352]
[1729118418442,227.66061889,155.15,154.94,8.97]
[1729118418631,8.97,155.07,154.95,4.56]
[1729118418837,3.2254,155.03,155.02,8.97]
[1729118419243,5.9807,155.07,155.02,8.97]
[1729118419439,3.2251,155.05,155.03,3.20695463]
[1729118419644,8.97,155.06,155.03,3.20695463]
[1729118420043,3.2249,155.05,155.03,3.20695463]
[1729118420839,3.2251,155.04,155.03,3.20695463]
[1729118423940,3.2253,155.03,155.02,8.97]
[1729118424139,3.2253,155.03,155.01,8.97]
[1729118428545,3.2253,155.03,154.99,4.56]
[1729118428546,1.4207,155.07,155.02,8.97]
[1729118428848,5.9582,155.08,155.04,8.97]
[1729118429054,3.2248,155.06,155.05,3.15527324]
[1729118429446,3.2248,155.06,155.04,8.97]
[1729118430146,3.2248,155.06,155.04,12.12607178]
[1729118432651,3.2249,155.05,155.04,3.15607178]
[1729118432850,8.97,155.07,155.02,8.97]
[1729118433047,1.3982,155.08,155.03,3.15639429]
[1729118433048,8.97,155.05,155.03,3.15639429]
[1729118433249,3.2254,155.03,155.01,8.97]
[1729118436551,3.2257,155.01,155.0,1.4013]
[1729118437055,1.3982,155.08,155.0,1.4013]
[1729118437253,3.2255,155.02,155.0,10.3713]
[1729118437645,8.97,155.05,155.0,10.3713]
[1729118438655,3.2257,155.02,155.0,10.3713]
[1729118441649,8.97,155.05,155.0,10.3713]
[1729118441856,3.2257,155.01,155.0,10.3713]
[1729118444057,3.226,155.0,154.98,8.97]
[1729118444261,3.226,155.0,154.98,12.1963]
[1729118445252,3.226,155.0,154.97,4.56]
[1729118445559,3.2261,154.99,154.98,8.97]
[1729118446258,4.56,155.05,154.98,8.97]
[1729118446455,3.226,155.0,154.99,8.97]
[1729118447962,3.2256,155.02,154.99,12.196]
[1729118448269,3.2256,155.02,155.0,8.97]
[1729118449059,4.56,155.05,155.0,8.97]
[1729118449262,4.56,155.05,155.01,8.97]
[1729118450460,3.2254,155.03,155.01,8.97]
[1729118453763,3.2254,155.03,155.0,12.1958]
[1729118455862,3.2256,155.02,154.99,13.6355]
[1729118456063,8.97,155.03,154.99,1.4394]
[1729118456263,8.97,155.02,154.99,1.4394]
[1729118456456,8.97,155.02,154.97,13.53]
[1729118457372,3.2261,155.0,154.97,13.53]
[1729118457671,8.97,155.02,154.97,13.53]
[1729118457965,3.2261,154.99,154.97,13.53]
[1729118459972,3.2261,154.99,154.97,8.97]
[1729118462768,3.2261,154.99,154.98,8.97]
[1729118474077,3.2261,154.99,154.97,3.2265]
[1729118474279,8.97,154.98,154.94,1.4186]
[1729118474971,3.2268,154.96,154.95,3.22527572]
[1729118485184,4.56,155.01,154.95,3.22527572]
[1729118485490,3.2267,154.97,154.95,3.22527572]
[1729118485882,3.2268,154.96,154.95,3.22527572]
[1729118488695,90.86653158,155.02,154.95,8.97]
[1729118488900,99.83653158,155.02,154.98,8.97]
[1729118489195,3.2259,155.01,154.98,12.1963]
[1729118489691,3.2259,155.01,154.98,15.40486811]
[1729118491996,3.2259,155.01,154.98,12.17856811]
[1729118493199,3.2259,155.0,154.98,12.17856811]
[1729118495598,98.49913158,155.02,154.98,12.17856811]
[1729118495802,3.2259,155.01,154.98,15.40476811]
[1729118496097,13.53,155.03,154.98,15.40476811]
[1729118496098,1.3538,155.08,155.0,8.97]
[1729118496299,8.97,155.07,155.01,1.4046]
[1729118496599,8.97,155.05,155.01,1.4046]
[1729118497099,8.97,155.05,155.01,4.58040645]
[1729118497299,3.2251,155.04,155.01,1.4046]
[1729118497904,3.2251,155.04,155.01,4.61591252]
[1729118499905,8.97,155.05,155.01,4.61591252]
[1729118500703,3.2254,155.03,155.01,4.61591252]
[1729118501394,8.97,155.02,154.92,1.3184]
[1729118501705,1.4386,155.06,154.97,8.97]
[1729118501905,8.97,155.02,154.97,12.13917653]
[1729118502103,8.97,155.0,154.97,3.16917653]
[1729118502298,8.97,155.0,154.96,13.53]
[1729118502701,8.97,155.0,154.96,16.7567]
[1729118502702,3.2262,154.99,154.96,16.7567]
[1729118502901,3.2262,154.99,154.96,19.97103068]
[1729118503295,3.2264,154.98,154.96,16.74433068]
[1729118504199,8.97,154.99,154.96,3.21433068]
[1729118504506,1.4485,155.03,154.95,4.54]
[1729118504507,3.2265,154.97,154.95,4.54]
[1729118504707,3.2265,154.97,154.95,7.81720212]
[1729118506709,3.2265,154.97,154.95,3.27720212]
[1729118506905,3.2265,154.97,154.94,16.737]
[1729118507405,3.2265,154.97,154.94,19.91257104]
[1729118513010,8.97,154.99,154.94,16.737]
[1729118513611,8.97,154.99,154.94,19.89180415]
[1729118513808,3.2265,154.97,154.94,19.89180415]
[1729118514411,3.2265,154.97,154.94,10.92180415]
[1729118514709,3.2265,154.97,154.94,19.89180415]
[1729118515307,3.2265,154.97,154.95,3.2269]
[1729118515813,3.2265,154.97,154.95,12.1969]
[1729118518722,3.2259,155.0,154.96,3.2268]
[1729118519013,8.97,155.01,154.96,3.2268]
[1729118519211,4.54,155.02,154.96,3.2268]
[1729118519412,3.2262,154.99,154.96,3.2268]
[1729118522210,8.97,154.98,154.94,3.15480415]
[1729118522411,8.97,154.97,154.93,1.3695]
[1729118522618,8.97,154.98,154.93,10.3395]
[1729118522915,3.2269,154.96,154.93,16.75483252]
[1729118525917,3.2269,154.96,154.93,7.78483252]
[1729118526118,3.227,154.95,154.93,7.78483252]
[1729118541639,3.227,154.95,154.93,7.78483252]
[1729118550544,3.2272,154.94,154.93,3.18803252]
[1729118550742,8.97,154.94,154.87,1.4467]
[1729118550943,8.97,154.9,154.87,1.4467]
[1729118551446,3.2283,154.89,154.87,1.4467]
[1729118553041,8.97,154.9,154.87,13.6453]
[1729118553042,3.2281,154.9,154.87,13.6453]
[1729118562550,8.97,154.92,154.87,13.6453]
[1729118562751,3.2282,154.89,154.87,10.4167]
[1729118562946,3.2282,154.89,154.87,1.4467]
[1729118563750,3.2282,154.89,154.86,6.53008754]
[1729118565847,3.2286,154.87,154.86,3.30138754]
[1729118566050,3.2286,154.87,154.83,5.9663]
[1729118566447,3.2286,154.87,154.84,3.2292]
[1729118566645,3.2286,154.87,154.83,14.9363]
[1729118566846,3.2284,154.88,154.85,8.97]
[1729118567051,3.2284,154.88,154.85,12.1989]
[1729118573555,3.2284,154.88,154.85,8.97]